bitfinex/quotes_SOLUSD_20250718
["timestamp","ask_amount","ask_price","bid_price","bid_amount"]
[1752831269255,5.64223901,179.14,179.1,8.29901565]
[1752831269781,13.94125466,179.14,179.09,7.62901565]
[1752831269988,8.29901565,179.13,179.08,54.8]
[1752831270174,0.67,179.12,179.08,54.8]
[1752831270366,0.67,179.12,179.09,33.49]
[1752831270983,7.62901565,179.13,179.09,33.49]
[1752831271186,5.64223901,179.14,179.1,8.29901565]
[1752831271892,13.27125466,179.14,179.09,33.49]
[1752831272062,0.67,179.13,179.09,41.11901565]
[1752831272681,0.67,179.12,179.08,62.42901565]
[1752831272906,0.67,179.12,179.08,54.8]
[1752831273100,0.67,179.12,179.08,62.42901565]
[1752831273696,7.68901565,179.14,179.09,0.67]
[1752831273861,7.68901565,179.14,179.1,0.67]
[1752831274168,0.06,179.14,179.11,0.67]
[1752831274578,0.06,179.14,179.1,7.62901565]
[1752831274784,0.06,179.14,179.1,8.29901565]
[1752831275971,0.06,179.14,179.1,41.78901565]
[1752831276171,0.06,179.16,179.13,7.62901565]
[1752831276377,0.06,179.16,179.14,8.29901565]
[1752831276584,0.06,179.16,179.15,7.62901565]
[1752831276873,0.06,179.16,179.15,0.67]
[1752831277273,0.06,179.16,179.14,28.8]
[1752831277473,5.64171298,179.16,179.14,28.8]
[1752831277674,0.06,179.16,179.14,28.8]
[1752831277875,0.06,179.16,179.13,41.11901565]
[1752831278086,0.06,179.16,179.14,7.62901565]
[1752831278597,0.06,179.16,179.15,0.67]
[1752831279218,0.06,179.16,179.15,8.29901565]
[1752831279392,0.06,179.16,179.15,0.67]
[1752831280170,0.06,179.16,179.15,8.29901565]
[1752831280368,0.06,179.16,179.15,71.1272071]
[1752831280670,0.06,179.16,179.15,78.6657071]
[1752831282088,0.06,179.16,179.15,63.7787]
[1752831282394,8.35901565,179.16,179.1,36.4388]
[1752831282571,7.62901565,179.15,179.1,36.4388]
[1752831282773,7.62901565,179.15,179.1,44.73781565]
[1752831282971,7.68901565,179.16,179.11,8.29901565]
[1752831283481,7.68901565,179.16,179.11,7.62901565]
[1752831283482,0.06,179.16,179.11,7.62901565]
[1752831283683,0.06,179.16,179.12,37.07901565]
[1752831283886,0.06,179.16,179.13,7.62901565]
[1752831284178,0.06,179.16,179.13,8.29901565]
[1752831284385,0.06,179.16,179.15,41.11901565]
[1752831284573,0.06,179.17,179.15,187.51901565]
[1752831284768,0.06,179.17,179.16,102.70617595]
[1752831285296,0.06,179.17,179.16,97.12717595]
[1752831286407,0.06,179.17,179.16,249.10877898]
[1752831286746,0.06,179.17,179.16,248.55061868]
[1752831287990,0.06,179.17,179.16,242.96901565]
[1752831288195,0.06,179.17,179.16,242.29901565]
[1752831289373,0.06,179.17,179.16,242.96901565]
[1752831290308,0.06,179.17,179.16,248.55061868]
[1752831291316,0.06,179.17,179.16,235.34]
[1752831291499,0.06,179.17,179.16,96.56901565]
[1752831292808,0.06,179.17,179.16,102.15061868]
[1752831293319,0.06,179.17,179.16,103.77351868]
[1752831295000,0.06,179.17,179.16,94.55820265]
[1752831295190,0.06,179.17,179.16,100.13720265]
[1752831296524,0.06,179.17,179.16,83.35251868]
[1752831297488,0.06,179.17,179.16,229.75251868]
[1752831299918,0.06,179.17,179.16,246.53720265]
[1752831300431,0.06,179.17,179.16,216.29901565]
[1752831300611,0.06,179.17,179.16,221.88061868]
[1752831301014,0.06,179.17,179.16,175.18]
[1752831301230,0.78,179.17,179.16,28.78]
[1752831301399,0.78,179.17,179.16,28.76]
[1752831301604,0.06,179.17,179.16,36.38901565]
[1752831301900,0.06,179.17,179.16,28.76]
[1752831302124,0.06,179.17,179.16,36.38901565]
[1752831302498,0.06,179.17,179.16,28.76]
[1752831302896,0.06,179.17,179.16,36.38901565]
[1752831303421,0.06,179.17,179.16,28.76]
[1752831303618,0.06,179.17,179.16,36.38901565]
[1752831304217,0.06,179.17,179.16,76.01877898]
[1752831304404,0.06,179.17,179.16,76.68877898]
[1752831305017,0.06,179.17,179.16,102.68877898]
[1752831305696,0.06,179.17,179.16,249.08877898]
[1752831305891,0.06,179.17,179.16,222.53061868]
[1752831307321,0.06,179.17,179.16,239.31530265]
[1752831309240,0.06,179.17,179.16,92.91530265]
[1752831309422,0.06,179.17,179.16,93.47346295]
[1752831309615,0.06,179.17,179.16,239.87346295]
[1752831309817,0.06,179.17,179.16,239.31530265]
[1752831311799,0.06,179.2,179.19,26.0]
[1752831311998,0.06,179.2,179.19,266.69271527]
[1752831312226,0.06,179.2,179.19,267.36271527]
[1752831315148,6.36035714,179.2,179.19,28.76]
[1752831315329,13.98937279,179.2,179.19,28.76]
[1752831316646,13.98937279,179.2,179.16,0.03]
[1752831316832,7.62901565,179.17,179.16,0.03]
[1752831317034,7.62901565,179.17,179.16,28.79]
[1752831317229,13.88030716,179.17,179.16,0.03]
[1752831318939,30.66499113,179.17,179.16,0.03]
[1752831319121,36.71719113,179.17,179.16,0.03]
[1752831320348,16.78468397,179.16,179.12,0.03]
[1752831320520,7.62901565,179.13,179.12,0.03]
[1752831320725,13.21155347,179.13,179.12,0.03]
[1752831320924,13.88155347,179.13,179.12,0.03]
[1752831321328,6.25253782,179.13,179.12,0.03]
[1752831321755,13.88155347,179.13,179.12,0.03]
[1752831322138,6.25253782,179.13,179.12,0.03]
[1752831322742,13.88155347,179.13,179.12,0.03]
[1752831323945,6.25253782,179.13,179.12,0.03]
[1752831324145,13.88155347,179.13,179.12,0.03]
[1752831324547,6.25253782,179.13,179.12,0.03]
[1752831325628,13.88155347,179.13,179.12,0.03]
[1752831328228,6.25253782,179.13,179.12,0.03]
[1752831330841,13.88155347,179.13,179.12,0.03]
[1752831331248,6.25253782,179.13,179.12,0.03]
[1752831331553,5.58232632,179.14,179.12,0.03]
[1752831332276,0.67,179.13,179.12,0.03]
[1752831333537,6.25253782,179.13,179.12,0.03]
[1752831334428,0.67,179.15,179.12,0.03]
[1752831334864,0.67,179.17,179.14,7.62901565]
[1752831335154,5.58128234,179.18,179.14,7.62901565]
[1752831335357,5.58128234,179.18,179.13,28.78]
[1752831335358,5.58072103,179.19,179.16,7.62901565]
[1752831335530,5.64035714,179.2,179.17,28.78]
[1752831335858,0.67,179.19,179.17,28.78]
[1752831336049,0.67,179.18,179.17,28.78]
[1752831336564,0.67,179.18,179.13,34.04825378]
[1752831336565,8.29901565,179.18,179.15,28.78]
[1752831336736,8.29901565,179.17,179.15,28.78]
[1752831336931,8.29901565,179.16,179.15,28.78]
[1752831337137,8.29901565,179.16,179.12,0.03]
[1752831337447,7.62901565,179.14,179.12,0.03]
[1752831337840,5.58253782,179.13,179.12,0.03]
[1752831338042,6.25253782,179.13,179.12,0.03]
[1752831338545,6.25191459,179.15,179.12,0.03]
[1752831338751,13.88093024,179.15,179.12,0.03]
[1752831338950,6.25191459,179.15,179.12,0.03]
[1752831339150,0.67,179.14,179.12,0.03]
[1752831339456,5.58191459,179.15,179.12,0.03]
[1752831339660,6.25191459,179.15,179.12,0.03]
[1752831340038,6.25237253,179.14,179.12,0.03]
[1752831340458,0.67,179.13,179.12,0.03]
[1752831342244,6.25253782,179.13,179.12,0.03]
[1752831347067,13.88155347,179.13,179.12,0.03]
[1752831347263,13.87155347,179.13,179.12,0.03]
[1752831348556,6.24253782,179.13,179.12,0.03]
[1752831348951,5.58253782,179.13,179.12,0.03]
[1752831349568,6.24253782,179.13,179.12,0.03]
[1752831350364,8.28901565,179.15,179.12,0.03]
[1752831350545,0.66,179.15,179.12,0.03]
[1752831351379,0.66,179.14,179.12,0.03]
[1752831351870,8.28901565,179.14,179.12,0.03]
[1752831352172,0.66,179.13,179.12,0.03]
[1752831352374,5.58222619,179.14,179.12,0.03]
[1752831352547,6.24222619,179.14,179.12,0.03]
[1752831352960,0.66,179.13,179.12,0.03]
[1752831354561,6.24253782,179.13,179.12,0.03]
[1752831355275,5.58253782,179.13,179.12,0.03]
[1752831355767,0.66,179.15,179.12,0.03]
[1752831355974,7.62901565,179.19,179.14,7.62901565]
[1752831356176,0.66,179.18,179.14,36.38901565]
[1752831356367,6.24066856,179.19,179.16,7.62901565]
[1752831356547,0.06,179.2,179.18,7.62901565]
[1752831356753,0.06,179.2,179.19,7.62901565]
[1752831358772,0.06,179.2,179.14,205.89]
[1752831358773,8.34901565,179.2,179.14,26.0]
[1752831358959,7.62901565,179.18,179.14,28.76]
[1752831359279,0.66,179.17,179.14,28.76]
[1752831359575,0.66,179.16,179.14,28.76]
[1752831359980,0.66,179.15,179.13,28.76]
[1752831360477,0.06,179.2,179.14,7.62901565]
[1752831360478,5.58098002,179.18,179.14,7.62901565]
[1752831360855,0.66,179.17,179.13,36.38901565]
[1752831361055,0.66,179.16,179.13,36.38901565]
[1752831361978,13.20999567,179.18,179.13,36.38901565]
[1752831362155,5.58072656,179.19,179.15,7.62901565]
[1752831362351,5.58072656,179.19,179.16,36.38901565]
[1752831363578,5.58072656,179.19,179.16,28.76]
[1752831363789,6.24072656,179.19,179.16,28.76]
[1752831364676,6.24072656,179.19,179.15,7.62901565]
[1752831364989,7.62901565,179.16,179.12,28.79]
[1752831365283,7.62901565,179.13,179.12,28.79]
[1752831365488,0.66,179.13,179.12,28.79]
[1752831365654,8.28901565,179.13,179.12,0.03]
[1752831366976,6.24253782,179.13,179.12,0.03]
[1752831369468,13.21124537,179.14,179.12,0.03]
[1752831369665,0.66,179.13,179.12,0.03]
[1752831370066,8.28901565,179.13,179.12,0.03]
[1752831371069,0.66,179.13,179.12,0.03]
[1752831371270,6.24253782,179.13,179.12,0.03]
[1752831371473,5.58253782,179.13,179.12,0.03]
[1752831372098,0.66,179.15,179.12,0.03]
[1752831372099,7.62901565,179.17,179.13,33.49]
[1752831372282,8.28901565,179.17,179.13,33.49]
[1752831372477,7.62901565,179.17,179.13,33.49]
[1752831372684,8.28901565,179.16,179.13,62.25]
[1752831372997,0.66,179.15,179.13,62.25]
[1752831373288,6.24219419,179.15,179.13,62.25]
[1752831374073,13.21120984,179.15,179.13,62.25]
[1752831374372,6.29222619,179.14,179.13,62.25]
[1752831375175,5.58222619,179.14,179.13,62.25]
[1752831375783,6.29222619,179.14,179.13,62.25]
[1752831376823,13.92124184,179.14,179.12,0.03]
[1752831377095,0.71,179.13,179.12,0.03]
[1752831377470,8.33901565,179.13,179.12,0.03]
[1752831377675,5.58222619,179.14,179.12,0.03]
[1752831378084,0.71,179.13,179.12,0.03]
[1752831378499,13.92155347,179.13,179.12,0.03]
[1752831378877,6.29253782,179.13,179.12,0.03]
[1752831379070,13.92155347,179.13,179.12,0.03]
[1752831379274,6.29253782,179.13,179.12,0.03]
[1752831379475,5.58253782,179.13,179.12,0.03]
[1752831380368,6.29253782,179.13,179.12,0.03]
[1752831380599,13.92155347,179.13,179.12,0.03]
[1752831384602,16.78468397,179.12,179.08,0.03]
[1752831384779,7.62901565,179.1,179.08,0.03]
[1752831384975,7.62901565,179.09,179.08,0.03]
[1752831385179,8.33901565,179.09,179.08,0.03]
[1752831385484,25.12369962,179.09,179.08,0.03]
[1752831385701,25.12369962,179.09,179.04,0.03]
[1752831385702,16.78468397,179.08,179.04,0.03]
[1752831386002,24.41369962,179.05,179.04,0.03]
[1752831386509,25.12369962,179.05,179.04,0.03]
[1752831386810,30.70873173,179.05,179.04,0.03]
[1752831388911,30.70873173,179.05,179.04,1e-08]
[1752831389309,23.07971608,179.05,179.04,1e-08]
[1752831389617,30.70873173,179.05,179.04,1e-08]
[1752831390990,13.92404776,179.05,179.04,1e-08]
[1752831394402,13.92404776,179.05,179.03,1e-08]
[1752831394605,16.78468397,179.03,179.02,1e-08]
[1752831394904,53.17369962,179.03,179.02,1e-08]
[1752831395109,53.86198286,179.03,179.02,1e-08]
[1752831395408,59.44763889,179.03,179.02,1e-08]
[1752831395897,13.92467168,179.03,179.02,1e-08]
[1752831396098,42.68467168,179.03,179.02,1e-08]
[1752831396900,13.92467168,179.03,179.02,1e-08]
[1752831397101,34.34565603,179.03,179.02,1e-08]
[1752831397287,5.58503211,179.05,179.02,0.67000001]
[1752831397709,13.21404776,179.05,179.02,1e-08]
[1752831397920,8.33901565,179.04,179.02,1e-08]
[1752831398610,0.71,179.03,179.02,1e-08]
[1752831398809,7.62901565,179.04,179.02,1e-08]
[1752831399017,5.58503211,179.05,179.02,1e-08]
[1752831399336,13.21404776,179.05,179.02,1e-08]
[1752831399624,5.58503211,179.05,179.02,1e-08]
[1752831399791,7.77116748,179.09,179.02,7.62901566]
[1752831399993,7.77116748,179.09,179.06,7.62901565]
[1752831400213,15.68016734,179.11,179.07,8.29901565]
[1752831400398,15.68016734,179.11,179.08,8.29901565]
[1752831400586,10.09691382,179.11,179.08,8.29901565]
[1752831400793,10.09691382,179.11,179.1,7.62901565]
[1752831400994,0.3426565,179.12,179.1,8.29901565]
[1752831401205,0.3426565,179.12,179.11,8.85733176]
[1752831401604,0.3426565,179.12,179.11,8.29901565]
[1752831401822,0.3426565,179.12,179.11,8.85733176]
[1752831402413,0.3426565,179.12,179.11,1.22831611]
[1752831402807,0.3426565,179.12,179.1,28.76]
[1752831403120,5.92558931,179.12,179.1,28.76]
[1752831403320,0.3426565,179.12,179.1,28.76]
[1752831403821,5.92555417,179.12,179.08,14.79491565]
[1752831404206,13.55456982,179.12,179.07,28.74]
[1752831404404,14.24456982,179.12,179.07,36.36901565]
[1752831404617,6.61555417,179.12,179.06,35.16301565]
[1752831404801,7.62901565,179.11,179.07,28.74]
[1752831405114,6.61555417,179.12,179.07,28.74]
[1752831405115,18.86276502,179.12,179.07,28.74]
[1752831405519,18.86276502,179.12,179.07,41.63721085]
[1752831405727,0.3426565,179.12,179.07,40.98721085]
[1752831405893,0.3426565,179.12,179.08,0.65]
[1752831407216,0.3426565,179.12,179.07,46.57147717]
[1752831407217,0.3426565,179.12,179.09,13.45558931]
[1752831407427,0.3426565,179.12,179.1,12.24721085]
[1752831407601,0.3426565,179.12,179.11,47.12868814]
[1752831407792,0.3426565,179.12,179.11,47.77868814]
[1752831408215,0.3426565,179.12,179.11,29.39]
[1752831408410,0.3426565,179.12,179.11,41.63721085]
[1752831411221,0.3426565,179.12,179.11,47.77868814]
[1752831412118,0.3426565,179.12,179.11,42.19552696]
[1752831412316,0.3426565,179.12,179.11,41.54552696]
[1752831412708,0.3426565,179.12,179.11,35.53147729]
[1752831412924,0.3426565,179.12,179.11,47.77868814]
[1752831413645,0.3426565,179.12,179.11,194.17868814]
[1752831413931,0.3426565,179.12,179.11,193.62037203]
[1752831414304,0.3426565,179.12,179.11,252.074756]
[1752831414503,0.06,179.18,179.11,252.074756]
[1752831414504,0.06,179.18,179.15,26.0]
[1752831414715,0.06,179.18,179.17,12.24721085]
[1752831415307,0.06,179.18,179.17,12.89721085]
[1752831415616,0.06,179.18,179.17,46.38721085]
[1752831416842,0.06,179.18,179.17,45.73721085]
[1752831417614,0.06,179.18,179.17,46.38721085]
[1752831417816,0.06,179.18,179.17,51.96850236]
[1752831418232,0.06,179.18,179.17,52.52663151]
[1752831418826,0.06,179.18,179.17,198.92663151]
[1752831419029,0.06,179.18,179.17,222.95798633]
[1752831420339,0.06,179.18,179.17,234.91330236]
[1752831420535,0.06,179.18,179.17,74.47721085]
[1752831421039,0.06,179.18,179.17,100.47721085]
[1752831421246,0.06,179.18,179.17,28.74]
[1752831421418,0.06,179.18,179.17,40.98721085]
[1752831422125,0.06,179.18,179.17,75.68534]
[1752831424047,0.06,179.18,179.17,81.26663151]
[1752831424744,0.06,179.18,179.17,227.66663151]
[1752831424931,0.06,179.18,179.17,227.10850236]
[1752831425747,0.06,179.18,179.17,243.89318633]
[1752831425952,0.06,179.2,179.19,62.52189482]
[1752831426153,0.06,179.22,179.2,50.27468397]
[1752831426359,0.06,179.24,179.23,26.0]
[1752831426530,0.06,179.24,179.23,264.35983712]
[1752831426729,0.06,179.24,179.23,264.36189482]
[1752831426956,0.06,179.26,179.24,16.78468397]
[1752831427261,0.06,179.26,179.25,91.95977487]
[1752831427452,0.06,179.26,179.25,105.0126487]
[1752831427655,0.06,179.26,179.25,100.57307487]
[1752831427830,0.06,179.26,179.25,106.15187542]
[1752831428149,0.06,179.26,179.25,252.55187542]
[1752831428352,0.06,179.3,179.27,100.76910567]
[1752831428528,0.06,179.3,179.27,276.66692348]
[1752831428855,0.06,179.3,179.27,276.66910567]
[1752831429563,0.06,179.3,179.29,62.52189482]
[1752831429869,0.1,179.34,179.31,76.27468397]
[1752831430032,0.1,179.34,179.31,118.0195882]
[1752831430232,0.1,179.34,179.31,118.02189482]
[1752831431039,0.1,179.34,179.32,50.27468397]
[1752831431253,0.1,179.34,179.33,58.549526]
[1752831431464,0.1,179.34,179.33,59.109526]
[1752831431760,0.1,179.34,179.33,67.391626]
[1752831432128,0.1,179.34,179.33,72.96793782]
[1752831434635,0.1,179.34,179.33,58.589526]
[1752831434849,0.1,179.34,179.33,38.80484203]
[1752831435036,0.81,179.34,179.33,55.0]
[1752831435239,0.81,179.34,179.33,67.24721085]
[1752831435556,0.1,179.34,179.33,67.24721085]
[1752831435738,0.1,179.34,179.33,73.38352267]
[1752831436071,0.1,179.34,179.33,73.94115385]
[1752831436267,0.1,179.36,179.35,52.78468397]
[1752831436553,0.06,179.38,179.36,16.78468397]
[1752831436755,0.06,179.38,179.37,41.80471767]
[1752831436958,0.06,179.38,179.37,59.14940164]
[1752831437263,0.06,179.39,179.37,67.19790164]
[1752831437470,0.06,179.43,179.4,26.0]
[1752831437760,0.06,179.43,179.4,80.0518353]
[1752831437960,0.06,179.43,179.4,67.80462445]
[1752831438330,0.06,179.43,179.4,73.37876045]
[1752831438535,0.06,179.43,179.4,38.80462445]
[1752831438764,0.77,179.43,179.4,67.80462445]
[1752831439060,0.06,179.43,179.4,67.80462445]
[1752831439237,0.06,179.43,179.4,73.37876045]
[1752831439631,0.06,179.43,179.4,68.36462445]
[1752831439861,0.06,179.43,179.4,67.80462445]
[1752831440355,0.06,179.43,179.4,101.29462445]
[1752831440544,0.06,179.43,179.4,106.86876045]
[1752831441058,0.06,179.43,179.4,106.84876045]
[1752831441266,0.06,179.43,179.4,107.40876045]
[1752831441433,0.06,179.43,179.4,119.6559713]
[1752831441631,0.06,179.43,179.4,77.31134685]
[1752831441835,0.06,179.43,179.4,100.71721085]
[1752831442068,0.06,179.43,179.4,89.0274136]
[1752831442276,0.06,179.43,179.4,101.27462445]
[1752831442480,0.06,179.43,179.4,89.0274136]
[1752831442636,0.06,179.43,179.4,101.27462445]
[1752831443556,0.06,179.43,179.4,89.0274136]
[1752831443748,0.77,179.43,179.4,89.0274136]
[1752831443954,0.77,179.43,179.4,101.27462445]
[1752831444159,0.06,179.43,179.4,101.27462445]
[1752831444645,0.06,179.43,179.4,107.40876045]
[1752831445045,0.06,179.43,179.4,253.80876045]
[1752831445268,0.06,179.43,179.4,247.11721085]
[1752831446764,0.06,179.43,179.4,252.69134685]
[1752831447064,0.06,179.43,179.4,253.25134685]
[1752831447248,0.06,179.43,179.4,106.85134685]
[1752831447560,0.06,179.43,179.4,107.40876045]
[1752831447776,0.06,179.43,179.4,253.80876045]
[1752831447964,0.06,179.43,179.4,253.25134685]
[1752831450654,0.06,179.43,179.41,179.83]
[1752831450863,0.06,179.43,179.41,198.21103616]
[1752831451068,0.06,179.43,179.41,193.58282852]
[1752831451273,0.06,179.43,179.41,185.96382531]
[1752831451454,0.06,179.43,179.41,193.58282852]
[1752831452092,0.06,179.43,179.41,193.02282852]
[1752831452276,0.06,179.43,179.41,187.44900321]
[1752831452580,0.77,179.42,179.41,208.79]
[1752831452747,0.77,179.42,179.41,234.79]
[1752831452952,0.06,179.42,179.41,234.79]
[1752831453171,0.06,179.42,179.41,242.40900321]
[1752831453347,0.06,179.42,179.41,247.98282852]
[1752831453553,0.06,179.42,179.41,248.54282852]
[1752831454161,0.06,179.42,179.41,242.40900321]
[1752831455057,0.06,179.42,179.41,247.98282852]
[1752831455251,0.06,179.42,179.41,253.56182852]
[1752831455766,0.06,179.42,179.41,247.98282852]
[1752831457584,0.06,179.42,179.41,222.54282852]
[1752831458681,0.06,179.42,179.41,214.36382531]
[1752831458878,0.06,179.42,179.41,221.98282852]
[1752831459468,0.06,179.42,179.41,222.54282852]
[1752831459982,0.06,179.42,179.41,224.21068252]
[1752831460483,0.06,179.42,179.41,222.54282852]
[1752831460658,0.06,179.42,179.41,214.92382531]
[1752831460863,0.06,179.42,179.41,216.40900321]
[1752831462784,0.06,179.42,179.41,221.98800321]
[1752831462958,0.77,179.42,179.41,208.79]
[1752831463154,0.06,179.42,179.41,208.79]
[1752831463358,0.06,179.42,179.41,216.40900321]
[1752831463867,0.06,179.42,179.41,234.79]
[1752831464572,0.77,179.42,179.41,234.79]
[1752831465868,0.77,179.42,179.41,88.45]
[1752831466165,0.77,179.42,179.41,62.45]
[1752831467386,0.77,179.42,179.41,62.48]
[1752831467685,0.77,179.42,179.41,70.09900321]
[1752831468681,0.77,179.42,179.41,62.48]
[1752831468872,0.77,179.42,179.41,63.03738253]
[1752831470602,0.77,179.42,179.41,28.89]
[1752831471198,6.34351465,179.42,179.41,28.89]
[1752831471688,13.96251786,179.42,179.41,28.89]
[1752831474298,6.34351465,179.42,179.41,28.89]
[1752831475776,0.77,179.42,179.41,28.89]
[1752831475988,0.06,179.42,179.41,62.38]
[1752831476204,0.06,179.42,179.41,70.55638574]
[1752831476699,0.06,179.42,179.41,62.93738253]
[1752831477078,0.06,179.42,179.41,62.38]
[1752831477393,0.77,179.42,179.41,62.93738253]
[1752831477604,0.77,179.42,179.41,62.38]
[1752831480787,0.06,179.42,179.41,62.93738253]
[1752831481200,0.06,179.42,179.41,76.69021105]
[1752831483203,0.06,179.42,179.41,70.55638574]
[1752831483573,8.38900321,179.42,179.41,62.38]
[1752831483772,8.38900321,179.42,179.41,28.89]
[1752831484999,0.77,179.42,179.41,28.89]
[1752831485181,13.96251786,179.42,179.41,28.89]
[1752831485579,6.34351465,179.42,179.41,28.89]
[1752831485882,13.96251786,179.42,179.41,28.89]
[1752831486306,0.77,179.42,179.41,28.89]
[1752831487307,0.06,179.42,179.41,62.38]
[1752831487906,0.77,179.42,179.41,62.38]
[1752831488285,0.06,179.42,179.41,62.38]
[1752831488690,0.06,179.42,179.41,69.99900321]
[1752831488889,0.06,179.42,179.41,62.38]
[1752831489194,0.06,179.42,179.41,69.99900321]
[1752831490481,0.06,179.42,179.41,70.55638574]
[1752831491187,0.77,179.42,179.41,0.03]
[1752831491393,0.77,179.42,179.41,28.85]
[1752831491889,0.77,179.42,179.41,29.40738253]
[1752831492407,0.06,179.42,179.41,70.51638574]
[1752831493581,0.06,179.42,179.41,76.65021105]
[1752831493789,0.06,179.42,179.41,71.07638574]
[1752831494216,0.06,179.42,179.41,76.65021105]
[1752831494393,0.06,179.42,179.41,248.99021105]
[1752831494580,0.06,179.42,179.41,248.43282852]
[1752831497115,0.06,179.42,179.41,222.43282852]
[1752831497297,0.06,179.43,179.41,222.43282852]
[1752831497610,0.06,179.43,179.42,73.79986932]
[1752831498212,0.06,179.43,179.42,66.18086611]
[1752831498614,0.06,179.43,179.42,73.79986932]
[1752831498989,0.06,179.43,179.42,66.18086611]
[1752831499298,0.06,179.43,179.42,73.79986932]
[1752831500116,0.06,179.43,179.42,67.66635467]
[1752831500611,0.06,179.43,179.42,73.23986932]
[1752831500820,0.06,179.43,179.42,73.79986932]
[1752831501720,0.06,179.43,179.42,220.13986932]
[1752831502017,0.06,179.43,179.42,219.58251786]
[1752831502510,0.06,179.43,179.42,225.16151786]
[1752831502702,0.06,179.45,179.44,59.49]
[1752831502911,0.06,179.45,179.44,242.82629255]
[1752831503096,0.06,179.46,179.44,242.82900321]
[1752831503291,0.06,179.46,179.45,34.05]
[1752831503492,0.06,179.46,179.45,41.66900321]
[1752831503709,0.06,179.46,179.45,46.68800321]
[1752831504126,0.06,179.46,179.45,53.37784438]
[1752831504442,0.06,179.46,179.45,47.79884438]
[1752831504617,0.06,179.46,179.45,53.37784438]
[1752831504928,0.06,179.46,179.45,47.79884438]
[1752831506224,0.06,179.46,179.45,194.13884438]
[1752831506394,0.1,179.47,179.45,193.5815861]
[1752831506597,0.1,179.47,179.46,97.08623044]
[1752831508003,0.1,179.47,179.46,206.38722723]
[1752831508202,0.8,179.47,179.46,95.96900321]
[1752831508398,0.1,179.47,179.46,96.52623044]
[1752831508900,0.1,179.47,179.46,102.09850281]
[1752831509604,0.1,179.47,179.46,96.52623044]
[1752831509804,0.8,179.47,179.46,69.96900321]
[1752831510225,0.8,179.47,179.46,36.47900321]
[1752831510522,0.8,179.47,179.46,28.86]
[1752831510731,0.8,179.47,179.46,36.47900321]
[1752831511104,13.99096509,179.47,179.43,33.49]
[1752831511305,8.31900321,179.46,179.41,41.13900321]
[1752831511628,5.67196188,179.47,179.42,28.9]
[1752831511629,24.40368718,179.44,179.42,28.9]
[1752831511813,24.40368718,179.44,179.41,0.03]
[1752831511814,1.545,179.42,179.41,0.03]
[1752831512017,7.61900321,179.4,179.37,0.03]
[1752831512214,7.61900321,179.4,179.38,28.92]
[1752831512417,0.7,179.39,179.38,28.92]
[1752831512831,0.7,179.41,179.38,28.92]
[1752831513023,0.7,179.4,179.39,7.61900321]
[1752831513207,0.7,179.42,179.39,37.09644788]
[1752831513407,0.7,179.41,179.39,36.53900321]
[1752831514431,0.7,179.43,179.4,7.61900321]
[1752831514634,0.7,179.42,179.41,28.94]
[1752831515631,0.7,179.42,179.41,62.43]
[1752831516809,13.89251786,179.42,179.41,28.94]
[1752831517008,6.27351465,179.42,179.41,28.94]
[1752831519239,13.89251786,179.42,179.41,28.94]
[1752831520433,30.67720183,179.42,179.41,28.94]
[1752831520617,30.67720183,179.42,179.4,28.94]
[1752831520826,24.40368718,179.41,179.4,28.94]